[Event "Titled Tuesday Blitz August 16 Early 2022"]
[White "Proudian, Armen"]
[Black "Shukhman, Anna"]
[WhiteFideId "2130734"]
[BlackFideId "54180058"]
[WhiteElo "2380"]
[BlackElo "1726"]
[Result "1/2-1/2"]
[Round "11"]
[TimeControl "180+2"]
[Date "2022.08.18"]
[WhiteClock "0:00:00"]
[BlackClock "0:00:00"]

1. e4 {[%clk 0:00:00]}  c5 {[%clk 0:00:00]} 2. Nf3 {[%clk 0:00:00]}  e6 {[%clk 0:00:00]} 3. d4 {[%clk 0:00:00]}  cxd4 {[%clk 0:00:00]} 4. Nxd4 {[%clk 0:00:00]}  a6 {[%clk 0:00:00]} 5. Bd3 {[%clk 0:00:00]}  Bc5 {[%clk 0:00:00]} 6. Nb3 {[%clk 0:00:00]}  Ba7 {[%clk 0:00:00]} 7. O-O {[%clk 0:00:00]}  Nf6 {[%clk 0:00:00]} 8. e5 {[%clk 0:00:00]}  Nd5 {[%clk 0:00:00]} 9. c4 {[%clk 0:00:00]}  Ne7 {[%clk 0:00:00]} 10. Nc3 {[%clk 0:00:00]}  Nbc6 {[%clk 0:00:00]} 11. Re1 {[%clk 0:00:00]}  d6 {[%clk 0:00:00]} 12. exd6 {[%clk 0:00:00]}  Qxd6 {[%clk 0:00:00]} 13. Bg5 {[%clk 0:00:00]}  h6 {[%clk 0:00:00]} 14. Bh4 {[%clk 0:00:00]}  e5 {[%clk 0:00:00]} 15. Qf3 {[%clk 0:00:00]}  Nd4 {[%clk 0:00:00]} 16. Nxd4 {[%clk 0:00:00]}  Bxd4 {[%clk 0:00:00]} 17. Ne4 {[%clk 0:00:00]}  Qc6 {[%clk 0:00:00]} 18. Bxe7 {[%clk 0:00:00]}  Kxe7 {[%clk 0:00:00]} 19. Qg3 {[%clk 0:00:00]}  g5 {[%clk 0:00:00]} 20. Nc3 {[%clk 0:00:00]}  Be6 {[%clk 0:00:00]} 21. Be4 {[%clk 0:00:00]}  Qxc4 {[%clk 0:00:00]} 22. Bxb7 {[%clk 0:00:00]}  Rab8 {[%clk 0:00:00]} 23. Bf3 {[%clk 0:00:00]}  Rxb2 {[%clk 0:00:00]} 24. Ne2 {[%clk 0:00:00]}  Rd8 {[%clk 0:00:00]} 25. Nxd4 {[%clk 0:00:00]}  exd4 {[%clk 0:00:00]} 26. h4 {[%clk 0:00:00]}  d3 {[%clk 0:00:00]} 27. hxg5 {[%clk 0:00:00]}  d2 {[%clk 0:00:00]} 28. Red1 {[%clk 0:00:00]}  Rxa2 {[%clk 0:00:00]} 29. Rxa2 {[%clk 0:00:00]}  Qxa2 {[%clk 0:00:00]} 30. gxh6 {[%clk 0:00:00]}  Qb2 {[%clk 0:00:00]} 31. h7 {[%clk 0:00:00]}  Qf6 {[%clk 0:00:00]} 32. Be4 {[%clk 0:00:00]}  a5 {[%clk 0:00:00]} 33. Qc7+ {[%clk 0:00:00]}  Rd7 {[%clk 0:00:00]} 34. Qxa5 {[%clk 0:00:00]}  Kf8 {[%clk 0:00:00]} 35. Rxd2 {[%clk 0:00:00]}  Rxd2 {[%clk 0:00:00]} 36. Qxd2 {[%clk 0:00:00]}  Qa1+ {[%clk 0:00:00]} 37. Kh2 {[%clk 0:00:00]}  Qe5+ {[%clk 0:00:00]} 38. g3 {[%clk 0:00:00]}  Kg7 {[%clk 0:00:00]} 39. Bc2 {[%clk 0:00:00]}  Bd5 {[%clk 0:00:00]} 40. h8=Q+ {[%clk 0:00:00]}  Kxh8 {[%clk 0:00:00]} 41. Qh6+ {[%clk 0:00:00]}  Kg8 {[%clk 0:00:00]} 42. Bh7+ {[%clk 0:00:00]}  Kh8 {[%clk 0:00:00]} 43. Bf5+ {[%clk 0:00:00]}  Kg8 {[%clk 0:00:00]} 44. Qg5+ {[%clk 0:00:00]}  Kf8 {[%clk 0:00:00]} 45. Qh6+ {[%clk 0:00:00]}  Kg8 {[%clk 0:00:00]} 46. Qh7+ {[%clk 0:00:00]}  Kf8 {[%clk 0:00:00]} 47. Kh3 {[%clk 0:00:00]}  Qe1 {[%clk 0:00:00]} 48. Qh6+ {[%clk 0:00:00]}  Ke7 {[%clk 0:00:00]} 49. Qe3+ {[%clk 0:00:00]}  Qxe3 {[%clk 0:00:00]} 50. fxe3 {[%clk 0:00:00]}  Kf6 {[%clk 0:00:00]} 51. Kg4 {[%clk 0:00:00]}  Ke5 {[%clk 0:00:00]} 52. Kg5 {[%clk 0:00:00]}  Bb3 {[%clk 0:00:00]} 53. Bb1 {[%clk 0:00:00]}  f6+ {[%clk 0:00:00]} 54. Kg6 {[%clk 0:00:00]}  Bc4 {[%clk 0:00:00]} 55. Bc2 {[%clk 0:00:00]}  Bd5 {[%clk 0:00:00]} 56. Bd3 {[%clk 0:00:00]}  Ba2 {[%clk 0:00:00]} 57. Kh5 {[%clk 0:00:00]}  Bb3 {[%clk 0:00:00]} 58. Kg4 {[%clk 0:00:00]}  Ba2 {[%clk 0:00:00]} 59. Kf3 {[%clk 0:00:00]}  Bb3 {[%clk 0:00:00]} 60. Ke2 {[%clk 0:00:00]}  Bd5 {[%clk 0:00:00]} 61. Kd2 {[%clk 0:00:00]}  Bf7 {[%clk 0:00:00]} 62. Be2 {[%clk 0:00:00]}  Be6 {[%clk 0:00:00]} 63. Bf3 {[%clk 0:00:00]}  Bf7 {[%clk 0:00:00]} 64. Kc3 {[%clk 0:00:00]}  Be6 {[%clk 0:00:00]} 65. Kb4 {[%clk 0:00:00]}  Bf7 {[%clk 0:00:00]} 66. Kc5 {[%clk 0:00:00]}  Be6 {[%clk 0:00:00]} 67. Kc6 {[%clk 0:00:00]}  Bb3 {[%clk 0:00:00]} 68. Kc5 {[%clk 0:00:00]}  Ba2 {[%clk 0:00:00]} 69. Bg2 {[%clk 0:00:00]}  Bg8 {[%clk 0:00:00]} 70. Kb4 {[%clk 0:00:00]}  Bf7 {[%clk 0:00:00]} 71. Kc5 {[%clk 0:00:00]}  Be6 {[%clk 0:00:00]} 72. Kc6 {[%clk 0:00:00]}  Bg8 {[%clk 0:00:00]} 73. Kd7 {[%clk 0:00:00]}  Ba2 {[%clk 0:00:00]} 74. Ke7 {[%clk 0:00:00]}  Bb3 {[%clk 0:00:00]} 75. Kf8 {[%clk 0:00:00]}  Ba2 {[%clk 0:00:00]} 76. Kg7 {[%clk 0:00:00]}  Bb3 {[%clk 0:00:00]} 77. Bf3 {[%clk 0:00:00]}  Ba2 {[%clk 0:00:00]} 78. Bh5 {[%clk 0:00:00]}  Bb3 {[%clk 0:00:00]} 79. Bf7 {[%clk 0:00:00]}  Bd1 {[%clk 0:00:00]} 80. Bc4 {[%clk 0:00:00]}  Bf3 {[%clk 0:00:00]} 81. Bd3 {[%clk 0:00:00]}  Bd5 {[%clk 0:00:00]} 82. Bh7 {[%clk 0:00:00]}  Bb3 {[%clk 0:00:00]} 83. Bg8 {[%clk 0:00:00]}  Bd1 {[%clk 0:00:00]} 84. Kf8 {[%clk 0:00:00]}  Bf3 {[%clk 0:00:00]} 85. Ke7 {[%clk 0:00:00]}  Bd1 {[%clk 0:00:00]} 86. Be6 {[%clk 0:00:00]}  Be2 {[%clk 0:00:00]} 87. Bb3 {[%clk 0:00:00]}  Bf3 {[%clk 0:00:00]} 88. Bc2 {[%clk 0:00:00]}  Be2 {[%clk 0:00:00]} 89. Bb1 {[%clk 0:00:00]}  Bd1 {[%clk 0:00:00]} 90. Bd3 {[%clk 0:00:00]}  Bf3 {[%clk 0:00:00]} 91. Kf7 {[%clk 0:00:00]}  Bd1 {[%clk 0:00:00]} 92. Kg6 {[%clk 0:00:00]}  Bf3 {[%clk 0:00:00]} 93. e4 {[%clk 0:00:00]}  Bd1 {[%clk 0:00:00]} 94. Bb1 {[%clk 0:00:00]}  Bf3 {[%clk 0:00:00]} 95. Bc2 {[%clk 0:00:00]}  Bxe4+ {[%clk 0:00:00]} 96. Bxe4 {[%clk 0:00:00]}  Kxe4 {[%clk 0:00:00]} 97. Kxf6 {[%clk 0:00:00]}  Kf3 {[%clk 0:00:00]} 98. g4 {[%clk 0:00:00]}  Kxg4 {[%clk 0:00:00]} 1/2-1/2


[Site "https://www.chess.com"]

[Event "Titled Tuesday Blitz August 16 Early 2022"]
[White "Przybylski, Wojciech"]
[Black "Sourath Biswas"]
[WhiteFideId "1117599"]
[BlackFideId "35091484"]
[WhiteElo "2133"]
[BlackElo "1777"]
[Result "0-1"]
[Round "11"]
[TimeControl "180+1"]
[Date "2022.08.16"]
[WhiteClock "0:00:03"]
[BlackClock "0:00:47"]

1. e4 {[%clk 0:02:56]}  c6 {[%clk 0:02:59]} 2. d4 {[%clk 0:02:54]}  d5 {[%clk 0:03:00]} 3. e5 {[%clk 0:02:54]}  Bf5 {[%clk 0:02:59]} 4. Nf3 {[%clk 0:02:54]}  e6 {[%clk 0:03:00]} 5. Be2 {[%clk 0:02:54]}  c5 {[%clk 0:02:59]} 6. c3 {[%clk 0:02:53]}  Nc6 {[%clk 0:02:56]} 7. O-O {[%clk 0:02:53]}  h6 {[%clk 0:02:50]} 8. Re1 {[%clk 0:02:52]}  Qb6 {[%clk 0:02:49]} 9. Na3 {[%clk 0:02:42]}  cxd4 {[%clk 0:02:40]} 10. Nxd4 {[%clk 0:02:38]}  Nxd4 {[%clk 0:02:38]} 11. cxd4 {[%clk 0:02:36]}  Ne7 {[%clk 0:02:35]} 12. Nb5 {[%clk 0:02:29]}  Nc6 {[%clk 0:02:35]} 13. Be3 {[%clk 0:02:11]}  a6 {[%clk 0:02:31]} 14. Nd6+ {[%clk 0:02:01]}  Bxd6 {[%clk 0:02:30]} 15. exd6 {[%clk 0:02:02]}  O-O {[%clk 0:02:29]} 16. g4 {[%clk 0:02:00]}  Bh7 {[%clk 0:02:26]} 17. g5 {[%clk 0:01:50]}  hxg5 {[%clk 0:02:26]} 18. Bxg5 {[%clk 0:01:49]}  Nxd4 {[%clk 0:02:23]} 19. Be7 {[%clk 0:01:47]}  Rfe8 {[%clk 0:02:20]} 20. Bg4 {[%clk 0:01:37]}  Nc2 {[%clk 0:01:47]} 21. Rc1 {[%clk 0:01:22]}  Nxe1 {[%clk 0:01:47]} 22. d7 {[%clk 0:01:21]}  Nd3 {[%clk 0:01:42]} 23. Rc3 {[%clk 0:01:13]}  Nxf2 {[%clk 0:01:33]} 24. Qb3 {[%clk 0:01:01]}  Qxb3 {[%clk 0:01:31]} 25. axb3 {[%clk 0:01:00]}  Nxg4 {[%clk 0:01:31]} 26. dxe8=R+ {[%clk 0:00:37]}  Rxe8 {[%clk 0:01:32]} 27. Bd6 {[%clk 0:00:37]}  Nf6 {[%clk 0:01:31]} 28. Rc7 {[%clk 0:00:35]}  b5 {[%clk 0:01:30]} 29. Bb4 {[%clk 0:00:31]}  d4 {[%clk 0:01:24]} 30. Rc6 {[%clk 0:00:31]}  Nd5 {[%clk 0:01:23]} 31. Bd2 {[%clk 0:00:30]}  a5 {[%clk 0:01:04]} 32. Bxa5 {[%clk 0:00:25]}  b4 {[%clk 0:01:05]} 33. Rd6 {[%clk 0:00:24]}  d3 {[%clk 0:01:05]} 34. Kf2 {[%clk 0:00:22]}  g5 {[%clk 0:01:03]} 35. Ke1 {[%clk 0:00:19]}  Ra8 {[%clk 0:00:59]} 36. Bd8 {[%clk 0:00:17]}  f6 {[%clk 0:00:52]} 37. Kd2 {[%clk 0:00:16]}  Kf7 {[%clk 0:00:52]} 38. h3 {[%clk 0:00:15]}  Bf5 {[%clk 0:00:51]} 39. Kd1 {[%clk 0:00:12]}  Ra2 {[%clk 0:00:51]} 40. h4 {[%clk 0:00:08]}  gxh4 {[%clk 0:00:50]} 41. Rd7+ {[%clk 0:00:06]}  Kg6 {[%clk 0:00:49]} 42. Rd6 {[%clk 0:00:04]}  Rxb2 {[%clk 0:00:49]} 43. Bc7 {[%clk 0:00:04]}  Nc3+ {[%clk 0:00:49]} 44. Kc1 {[%clk 0:00:03]}  Rc2# {[%clk 0:00:47]} 0-1


[Site "https://www.chess.com"]

[Event "Titled Tuesday Blitz August 16 Early 2022"]
[White "Rios Escobar, Adan"]
[Black "Alexikov, Alexander"]
[WhiteFideId "3403645"]
[BlackFideId "14103958"]
[WhiteElo "2276"]
[BlackElo "2253"]
[Result "1/2-1/2"]
[Round "11"]
[TimeControl "180+2"]
[Date "2022.08.18"]
[WhiteClock "0:00:00"]
[BlackClock "0:00:00"]

1. d4 {[%clk 0:00:00]}  Nf6 {[%clk 0:00:00]} 2. g3 {[%clk 0:00:00]}  g6 {[%clk 0:00:00]} 3. Bg2 {[%clk 0:00:00]}  Bg7 {[%clk 0:00:00]} 4. e4 {[%clk 0:00:00]}  d6 {[%clk 0:00:00]} 5. Ne2 {[%clk 0:00:00]}  O-O {[%clk 0:00:00]} 6. O-O {[%clk 0:00:00]}  c6 {[%clk 0:00:00]} 7. a4 {[%clk 0:00:00]}  a5 {[%clk 0:00:00]} 8. Nbc3 {[%clk 0:00:00]}  Na6 {[%clk 0:00:00]} 9. h3 {[%clk 0:00:00]}  e5 {[%clk 0:00:00]} 10. Be3 {[%clk 0:00:00]}  Qc7 {[%clk 0:00:00]} 11. Qd2 {[%clk 0:00:00]}  Re8 {[%clk 0:00:00]} 12. f4 {[%clk 0:00:00]}  Bd7 {[%clk 0:00:00]} 13. Rad1 {[%clk 0:00:00]}  Nb4 {[%clk 0:00:00]} 14. g4 {[%clk 0:00:00]}  Bxg4 {[%clk 0:00:00]} 15. hxg4 {[%clk 0:00:00]}  Nxg4 {[%clk 0:00:00]} 16. fxe5 {[%clk 0:00:00]}  Nxe3 {[%clk 0:00:00]} 17. Qxe3 {[%clk 0:00:00]}  dxe5 {[%clk 0:00:00]} 18. Rd2 {[%clk 0:00:00]}  exd4 {[%clk 0:00:00]} 19. Nxd4 {[%clk 0:00:00]}  Rad8 {[%clk 0:00:00]} 20. Nce2 {[%clk 0:00:00]}  Qb6 {[%clk 0:00:00]} 21. c3 {[%clk 0:00:00]}  Nd5 {[%clk 0:00:00]} 22. Qf3 {[%clk 0:00:00]}  Nf6 {[%clk 0:00:00]} 23. Ng3 {[%clk 0:00:00]}  c5 {[%clk 0:00:00]} 24. e5 {[%clk 0:00:00]}  Rxe5 {[%clk 0:00:00]} 25. Nc6 {[%clk 0:00:00]}  bxc6 {[%clk 0:00:00]} 26. Rxd8+ {[%clk 0:00:00]}  Qxd8 {[%clk 0:00:00]} 27. Qxc6 {[%clk 0:00:00]}  h5 {[%clk 0:00:00]} 28. Bf3 {[%clk 0:00:00]}  h4 {[%clk 0:00:00]} 29. Rd1 {[%clk 0:00:00]}  Qe7 {[%clk 0:00:00]} 30. Nf1 {[%clk 0:00:00]}  Bh6 {[%clk 0:00:00]} 31. Qa8+ {[%clk 0:00:00]}  Kg7 {[%clk 0:00:00]} 32. Qxa5 {[%clk 0:00:00]}  Rf5 {[%clk 0:00:00]} 33. Bg2 {[%clk 0:00:00]}  Be3+ {[%clk 0:00:00]} 34. Kh1 {[%clk 0:00:00]}  Bf4 {[%clk 0:00:00]} 35. Qd8 {[%clk 0:00:00]}  Qe2 {[%clk 0:00:00]} 36. Qd3 {[%clk 0:00:00]}  Qxb2 {[%clk 0:00:00]} 37. Ne3 {[%clk 0:00:00]}  Bxe3 {[%clk 0:00:00]} 38. Qxe3 {[%clk 0:00:00]}  Qc2 {[%clk 0:00:00]} 39. Qd3 {[%clk 0:00:00]}  Qxd3 {[%clk 0:00:00]} 40. Rxd3 {[%clk 0:00:00]}  Rf2 {[%clk 0:00:00]} 41. a5 {[%clk 0:00:00]}  Ra2 {[%clk 0:00:00]} 42. Bb7 {[%clk 0:00:00]}  Rxa5 {[%clk 0:00:00]} 43. c4 {[%clk 0:00:00]}  Ra4 {[%clk 0:00:00]} 44. Bd5 {[%clk 0:00:00]}  Nxd5 {[%clk 0:00:00]} 45. cxd5 {[%clk 0:00:00]}  Kf8 {[%clk 0:00:00]} 46. d6 {[%clk 0:00:00]}  Ke8 {[%clk 0:00:00]} 47. Rd5 {[%clk 0:00:00]}  Kd7 {[%clk 0:00:00]} 48. Rxc5 {[%clk 0:00:00]}  Kxd6 {[%clk 0:00:00]} 49. Rb5 {[%clk 0:00:00]}  Ke6 {[%clk 0:00:00]} 50. Rb6+ {[%clk 0:00:00]}  Kf5 {[%clk 0:00:00]} 51. Rb7 {[%clk 0:00:00]}  f6 {[%clk 0:00:00]} 52. Rb5+ {[%clk 0:00:00]}  Kg4 {[%clk 0:00:00]} 53. Rb7 {[%clk 0:00:00]}  Kg5 {[%clk 0:00:00]} 54. Rb3 {[%clk 0:00:00]}  f5 {[%clk 0:00:00]} 55. Rb7 {[%clk 0:00:00]}  Ra2 {[%clk 0:00:00]} 56. Rb8 {[%clk 0:00:00]}  Kh5 {[%clk 0:00:00]} 57. Rh8+ {[%clk 0:00:00]}  Kg4 {[%clk 0:00:00]} 58. Rb8 {[%clk 0:00:00]}  g5 {[%clk 0:00:00]} 59. Rb3 {[%clk 0:00:00]}  f4 {[%clk 0:00:00]} 60. Rc3 {[%clk 0:00:00]}  f3 {[%clk 0:00:00]} 61. Rc5 {[%clk 0:00:00]}  Kf4 {[%clk 0:00:00]} 62. Rc4+ {[%clk 0:00:00]}  Kg3 {[%clk 0:00:00]} 63. Rc1 {[%clk 0:00:00]}  Rh2+ {[%clk 0:00:00]} 64. Kg1 {[%clk 0:00:00]}  f2+ {[%clk 0:00:00]} 65. Kf1 {[%clk 0:00:00]}  Rh1+ {[%clk 0:00:00]} 66. Ke2 {[%clk 0:00:00]}  Rxc1 {[%clk 0:00:00]} 67. Kd2 {[%clk 0:00:00]}  f1=Q {[%clk 0:00:00]} 68. Ke3 {[%clk 0:00:00]} 1/2-1/2


[Site "https://www.chess.com"]

[Event "Titled Tuesday Blitz August 16 Early 2022"]
[White "Sanchez Alvares, Kelvin Antonio"]
[Black "Ferriz Barrios, Andres"]
[WhiteFideId "3906680"]
[BlackFideId "5104467"]
[WhiteElo "2189"]
[BlackElo "2102"]
[Result "1-0"]
[Round "11"]
[TimeControl "180+2"]
[Date "2022.08.18"]
[WhiteClock "0:00:00"]
[BlackClock "0:00:00"]

1. e4 {[%clk 0:00:00]}  e6 {[%clk 0:00:00]} 2. d4 {[%clk 0:00:00]}  d5 {[%clk 0:00:00]} 3. Nd2 {[%clk 0:00:00]}  dxe4 {[%clk 0:00:00]} 4. Nxe4 {[%clk 0:00:00]}  Nd7 {[%clk 0:00:00]} 5. Nf3 {[%clk 0:00:00]}  Ngf6 {[%clk 0:00:00]} 6. Bg5 {[%clk 0:00:00]}  Be7 {[%clk 0:00:00]} 7. Bxf6 {[%clk 0:00:00]}  Nxf6 {[%clk 0:00:00]} 8. Bd3 {[%clk 0:00:00]}  b6 {[%clk 0:00:00]} 9. Qe2 {[%clk 0:00:00]}  Bb7 {[%clk 0:00:00]} 10. O-O-O {[%clk 0:00:00]}  Nd5 {[%clk 0:00:00]} 11. g3 {[%clk 0:00:00]}  Nb4 {[%clk 0:00:00]} 12. Bc4 {[%clk 0:00:00]}  a6 {[%clk 0:00:00]} 13. a3 {[%clk 0:00:00]}  b5 {[%clk 0:00:00]} 14. Bb3 {[%clk 0:00:00]}  Nd5 {[%clk 0:00:00]} 15. Ne5 {[%clk 0:00:00]}  O-O {[%clk 0:00:00]} 16. h4 {[%clk 0:00:00]}  Rb8 {[%clk 0:00:00]} 17. Nc5 {[%clk 0:00:00]}  Bxc5 {[%clk 0:00:00]} 18. dxc5 {[%clk 0:00:00]}  Qe7 {[%clk 0:00:00]} 19. c6 {[%clk 0:00:00]}  Ba8 {[%clk 0:00:00]} 20. Nd7 {[%clk 0:00:00]}  Qd6 {[%clk 0:00:00]} 21. Nxb8 {[%clk 0:00:00]}  Rxb8 {[%clk 0:00:00]} 22. Rhe1 {[%clk 0:00:00]}  Bxc6 {[%clk 0:00:00]} 23. Qe5 {[%clk 0:00:00]}  Qxe5 {[%clk 0:00:00]} 24. Rxe5 {[%clk 0:00:00]}  a5 {[%clk 0:00:00]} 25. Rd4 {[%clk 0:00:00]}  Kf8 {[%clk 0:00:00]} 26. Rh5 {[%clk 0:00:00]}  h6 {[%clk 0:00:00]} 27. Re5 {[%clk 0:00:00]}  Rb6 {[%clk 0:00:00]} 28. a4 {[%clk 0:00:00]}  b4 {[%clk 0:00:00]} 29. Bc4 {[%clk 0:00:00]}  Nf6 {[%clk 0:00:00]} 30. Rxa5 {[%clk 0:00:00]}  Bb7 {[%clk 0:00:00]} 31. Rb5 {[%clk 0:00:00]}  Bc6 {[%clk 0:00:00]} 32. Rxb6 {[%clk 0:00:00]}  cxb6 {[%clk 0:00:00]} 33. Bb3 {[%clk 0:00:00]}  b5 {[%clk 0:00:00]} 34. a5 {[%clk 0:00:00]}  Nd5 {[%clk 0:00:00]} 35. Bxd5 {[%clk 0:00:00]}  Bxd5 {[%clk 0:00:00]} 36. Rxb4 {[%clk 0:00:00]}  Bc6 {[%clk 0:00:00]} 37. a6 {[%clk 0:00:00]}  Ke7 {[%clk 0:00:00]} 38. a7 {[%clk 0:00:00]}  Kd7 {[%clk 0:00:00]} 39. Rxb5 {[%clk 0:00:00]} 1-0


[Site "https://www.chess.com"]

[Event "Titled Tuesday Blitz August 16 Early 2022"]
[White "Santos Ruiz, Miguel"]
[Black "Pinheiro, Iung Alicio de O."]
[WhiteFideId "22291482"]
[BlackFideId "2104350"]
[WhiteElo "2478"]
[BlackElo "2283"]
[Result "0-1"]
[Round "11"]
[TimeControl "180+1"]
[Date "2022.08.16"]
[WhiteClock "0:00:43"]
[BlackClock "0:00:29"]

1. e3 {[%clk 0:02:59]}  d5 {[%clk 0:02:57]} 2. b3 {[%clk 0:02:58]}  c6 {[%clk 0:02:51]} 3. Bb2 {[%clk 0:02:58]}  Bf5 {[%clk 0:02:50]} 4. Nf3 {[%clk 0:02:56]}  e6 {[%clk 0:02:48]} 5. Rg1 {[%clk 0:02:51]}  Nf6 {[%clk 0:02:41]} 6. Ne5 {[%clk 0:02:52]}  h6 {[%clk 0:02:38]} 7. g4 {[%clk 0:02:52]}  Bh7 {[%clk 0:02:37]} 8. h4 {[%clk 0:02:52]}  Nfd7 {[%clk 0:02:34]} 9. Nf3 {[%clk 0:02:46]}  c5 {[%clk 0:02:29]} 10. d3 {[%clk 0:02:42]}  Nc6 {[%clk 0:02:29]} 11. Nbd2 {[%clk 0:02:43]}  Qb6 {[%clk 0:02:13]} 12. a3 {[%clk 0:02:29]}  Rg8 {[%clk 0:02:10]} 13. Qe2 {[%clk 0:02:28]}  Be7 {[%clk 0:02:07]} 14. e4 {[%clk 0:02:26]}  O-O-O {[%clk 0:02:06]} 15. Bg2 {[%clk 0:02:22]}  Bf6 {[%clk 0:02:02]} 16. e5 {[%clk 0:02:10]}  Be7 {[%clk 0:01:59]} 17. h5 {[%clk 0:02:09]}  Rge8 {[%clk 0:01:56]} 18. Kf1 {[%clk 0:02:04]}  f6 {[%clk 0:01:52]} 19. exf6 {[%clk 0:02:03]}  Bxf6 {[%clk 0:01:51]} 20. Bxf6 {[%clk 0:02:03]}  Nxf6 {[%clk 0:01:46]} 21. Re1 {[%clk 0:01:56]}  e5 {[%clk 0:01:45]} 22. g5 {[%clk 0:01:56]}  hxg5 {[%clk 0:01:39]} 23. Bh3+ {[%clk 0:01:56]}  Kb8 {[%clk 0:01:33]} 24. Rxg5 {[%clk 0:01:52]}  e4 {[%clk 0:01:32]} 25. dxe4 {[%clk 0:01:49]}  Bxe4 {[%clk 0:01:30]} 26. Nxe4 {[%clk 0:01:29]}  Nxe4 {[%clk 0:01:29]} 27. Rxg7 {[%clk 0:01:30]}  Rf8 {[%clk 0:01:15]} 28. Qe3 {[%clk 0:01:11]}  Rxf3 {[%clk 0:01:13]} 29. Qxf3 {[%clk 0:01:08]}  Nd2+ {[%clk 0:01:13]} 30. Kg2 {[%clk 0:01:08]}  Nxf3 {[%clk 0:01:14]} 31. Kxf3 {[%clk 0:01:09]}  Nd4+ {[%clk 0:01:12]} 32. Kg2 {[%clk 0:01:09]}  Qf6 {[%clk 0:01:02]} 33. Ree7 {[%clk 0:01:09]}  Qf3+ {[%clk 0:01:01]} 34. Kh2 {[%clk 0:00:50]}  Qxf2+ {[%clk 0:00:59]} 35. Kh1 {[%clk 0:00:50]}  Qf3+ {[%clk 0:00:57]} 36. Kh2 {[%clk 0:00:50]}  Qf4+ {[%clk 0:00:54]} 37. Kh1 {[%clk 0:00:49]}  Qc1+ {[%clk 0:00:51]} 38. Kh2 {[%clk 0:00:46]}  Qxc2+ {[%clk 0:00:50]} 39. Bg2 {[%clk 0:00:46]}  Qxb3 {[%clk 0:00:48]} 40. h6 {[%clk 0:00:46]}  Nf5 {[%clk 0:00:46]} 41. h7 {[%clk 0:00:42]}  Nxg7 {[%clk 0:00:42]} 42. Rxg7 {[%clk 0:00:43]}  Qd3 {[%clk 0:00:29]} 0-1


[Site "https://www.chess.com"]

[Event "Titled Tuesday Blitz August 16 Early 2022"]
[White "Tanenbaum, Zachary"]
[Black "Tica, Sven"]
[WhiteFideId "2060850"]
[BlackFideId "14526948"]
[WhiteElo "2175"]
[BlackElo "2350"]
[Result "1-0"]
[Round "11"]
[TimeControl "180+1"]
[Date "2022.08.16"]
[WhiteClock "0:00:17"]
[BlackClock "0:00:51"]

1. e4 {[%clk 0:03:00]}  g6 {[%clk 0:03:00]} 2. d4 {[%clk 0:03:00]}  Bg7 {[%clk 0:03:01]} 3. Nc3 {[%clk 0:03:01]}  a6 {[%clk 0:03:01]} 4. Nf3 {[%clk 0:02:59]}  b5 {[%clk 0:03:02]} 5. Bd3 {[%clk 0:02:57]}  Bb7 {[%clk 0:03:03]} 6. Bg5 {[%clk 0:02:57]}  d6 {[%clk 0:03:01]} 7. Qe2 {[%clk 0:02:56]}  h6 {[%clk 0:03:00]} 8. Bh4 {[%clk 0:02:56]}  g5 {[%clk 0:03:00]} 9. Bg3 {[%clk 0:02:57]}  e6 {[%clk 0:03:01]} 10. O-O-O {[%clk 0:02:55]}  Nd7 {[%clk 0:03:00]} 11. e5 {[%clk 0:02:45]}  d5 {[%clk 0:02:59]} 12. h4 {[%clk 0:02:44]}  g4 {[%clk 0:02:56]} 13. Nd2 {[%clk 0:02:39]}  h5 {[%clk 0:02:56]} 14. f3 {[%clk 0:02:39]}  Nh6 {[%clk 0:02:56]} 15. Bf4 {[%clk 0:02:29]}  c5 {[%clk 0:02:55]} 16. dxc5 {[%clk 0:02:24]}  Nxc5 {[%clk 0:02:55]} 17. Nb3 {[%clk 0:02:07]}  Nxb3+ {[%clk 0:02:42]} 18. cxb3 {[%clk 0:02:01]}  Qb6 {[%clk 0:02:30]} 19. Kb1 {[%clk 0:01:59]}  O-O-O {[%clk 0:02:30]} 20. Bg5 {[%clk 0:01:43]}  Rd7 {[%clk 0:02:27]} 21. Bxh6 {[%clk 0:01:19]}  Bxh6 {[%clk 0:02:22]} 22. fxg4 {[%clk 0:01:20]}  hxg4 {[%clk 0:02:23]} 23. Qxg4 {[%clk 0:01:20]}  Rdd8 {[%clk 0:02:24]} 24. Qf3 {[%clk 0:01:13]}  Qc7 {[%clk 0:02:06]} 25. Rhe1 {[%clk 0:01:08]}  Bg7 {[%clk 0:02:04]} 26. Nxb5 {[%clk 0:01:00]}  axb5 {[%clk 0:02:01]} 27. Rc1 {[%clk 0:01:01]}  Bc6 {[%clk 0:02:02]} 28. Bxb5 {[%clk 0:00:56]}  Bxb5 {[%clk 0:02:01]} 29. Rxc7+ {[%clk 0:00:55]}  Kxc7 {[%clk 0:02:02]} 30. Qxf7+ {[%clk 0:00:55]}  Rd7 {[%clk 0:02:02]} 31. Rc1+ {[%clk 0:00:55]}  Kb7 {[%clk 0:01:53]} 32. Qxe6 {[%clk 0:00:55]}  Rxh4 {[%clk 0:01:48]} 33. a4 {[%clk 0:00:54]}  Rh6 {[%clk 0:01:47]} 34. Qe8 {[%clk 0:00:41]}  Rh8 {[%clk 0:01:25]} 35. Qg6 {[%clk 0:00:40]}  Rh6 {[%clk 0:01:24]} 36. Qc2 {[%clk 0:00:40]}  Rc6 {[%clk 0:01:20]} 37. Qf5 {[%clk 0:00:31]}  Rxc1+ {[%clk 0:01:16]} 38. Kxc1 {[%clk 0:00:32]}  Re7 {[%clk 0:01:13]} 39. axb5 {[%clk 0:00:31]}  Bxe5 {[%clk 0:01:09]} 40. g4 {[%clk 0:00:25]}  d4 {[%clk 0:01:02]} 41. Qe4+ {[%clk 0:00:25]}  Kb8 {[%clk 0:01:02]} 42. g5 {[%clk 0:00:21]}  Rc7+ {[%clk 0:01:01]} 43. Kd1 {[%clk 0:00:20]}  Bg7 {[%clk 0:01:02]} 44. b6 {[%clk 0:00:18]}  Rc8 {[%clk 0:00:51]} 45. Qe7 {[%clk 0:00:17]} 1-0


[Site "https://www.chess.com"]